Cogmind - Beta 10.2 @@@ ROGUE MODE // 2021.01.11 @ 17:01:30 Player: Boris Result: Escaped! Performance ------------- Evolutions (9) 4500 Regions Visited (26) 5200 Robots Destroyed (227) 1135 Value Destroyed (10520) 10520 Prototype IDs (64) 1280 Alien Tech Used (0) 0 Bonus (8694) 8694 TOTAL SCORE: 31329 Bonus ------- High Alert Combat Kills 2215 Follower Combat Kills 2348 Entered Garrisons 800 Used RIF Installer 1500 Network Hubs Disabled 400 Aligned with FarCom 300 Built Enhanced Grunts 300 A7 Reached Mainframe 300 Win 3000 Friendly Fire -2469 Cogmind --------- Core Integrity 1575/1600 Matter 177/300 Energy 276/280 System Corruption 0% Temperature Cool (156) Movement Flying (16) Location To Epsilon Eridani Parts ------- > --- POWER (3) -------- Light Quantum Reactor Light Quantum Reactor > --- PROPULSION (6) --- Field Propulsion Array Experimental Q-thruster Experimental Q-thruster Experimental Q-thruster > --- UTILITY (12) ----- Spectral Analyzer Experimental Terrain Scan Processor Reaction Control System Relay Coupler [NC] (20) Relay Coupler [Swarmer] (46) Relay Coupler [Grunt] (34) Relay Coupler [Grunt] (24) Relay Coupler [Brawler] (21) Relay Coupler [Sentry] (20) > --- WEAPON (4) ------- Enhanced Nova Cannon > --- INVENTORY (4) ---- Light Quantum Reactor EMDS Guided Plasma Cannon Peak State ------------ > --- POWER ------------ Light Particle Reactor Light Quantum Reactor Light Quantum Reactor > --- PROPULSION ------- Field Propulsion Array Impulse Thruster Array Experimental Q-thruster Experimental Q-thruster > --- UTILITY ---------- Advanced Heat Sink Spectral Analyzer Stasis Canceller Relay Coupler [NC] Relay Coupler [Swarmer] Relay Coupler [Grunt] Relay Coupler [Grunt] Relay Coupler [Brawler] Relay Coupler [Sentry] Relay Coupler [Hunter] > --- WEAPON ----------- EMDS > --- INVENTORY -------- Light Quantum Reactor Experimental Q-thruster Guided Plasma Cannon [Rating: 142] Favorites ----------- Power Quantum Reactor Engine Light Ion Engine Power Core Micro Fission Core Reactor Quantum Reactor Propulsion Enhanced Biometal Leg Treads Heavy Treads Leg Enhanced Biometal Leg Wheel Compact Wheel Hover Unit Combat Antigrav System Flight Unit Q-thruster Utility High-capacity Storage Unit Device Improved Cooling System Storage High-capacity Storage Unit Processor Advanced Targeting Computer Hackware Improved Hacking Suite Protection Centrium Medium Armor Plating Weapon Heavy EM Shotgun Energy Gun Heavy EM Shotgun Energy Cannon Proton Cannon Ballistic Gun Improved KE Penetrator Ballistic Cannon Improved Light Cannon Launcher Improved Grenade Launcher Special Weapon Remote Datajack Impact Weapon Powered Hammer Slashing Weapon Phasing Sabre Build | -11 -10 -10 -10 -9 -8 -8 -8 -8 -6 -6 -6 -6 -6 -6 -6 -6 -5 -5 -4 -4 -4 -3 -2 -2 -2 -1 ------- Run | Scr Mat Min Exi Min Mat Sto Gar Rec Fac Was Fac Ext Cet Arc Hub Gar Fac Gar Fac Arm Lab Res Res Gar Res Acc Slots Evolved 18 | . . . . . 4 . . . 4 . . . . . . . 2 . 2 . . 2 2 . . 2 Power 2 | . . . . . . . . . . . . . . . . . 1 . . . . . . . . 1 Propulsion 4 | . . . . . 1 . . . 1 . . . . . . . 1 . . . . . . . . 1 Utility 10 | . . . . . 2 . . . 3 . . . . . . . . . 2 . . 1 2 . . . Weapon 2 | . . . . . 1 . . . . . . . . . . . . . . . . 1 . . . . Parts Attached 298 | 6 3 1 1 2 10 19 4 4 1 9 6 17 15 11 28 14 22 8 33 39 . 9 6 8 2 20 Power 20 | 1 . . . . 1 1 . . . 1 . . 1 2 2 1 2 1 1 1 . . 2 . . 3 Engine 3 | 1 . . . . 1 1 . . . . . . . . . . . . . . . . . . . . Core 2 | . . . . . . . . . . . . . . . . . 1 1 . . . . . . . . Reactor 15 | . . . . . . . . . . 1 . . 1 2 2 1 1 . 1 1 . . 2 . . 3 Propulsion 59 | 2 . 1 . . 2 4 2 3 . 2 . 1 2 . 4 2 6 . 3 12 . 6 3 . . 4 Treads 13 | 1 . 1 . . 1 2 2 . . 1 . . 2 . 1 . . . . . . 2 . . . . Leg 16 | . . . . . . . . . . . . . . . 3 2 6 . 3 2 . . . . . . Wheel 10 | 1 . . . . 1 1 . 3 . 1 . 1 . . . . . . . 2 . . . . . . Hover 8 | . . . . . . . . . . . . . . . . . . . . 8 . . . . . . Flight 12 | . . . . . . 1 . . . . . . . . . . . . . . . 4 3 . . 4 Utility 86 | 1 1 . 1 . 4 . . . 1 4 3 1 2 7 8 6 8 3 11 9 . . . 5 2 9 Device 32 | . 1 . . . . . . . . . . 1 1 5 5 1 4 1 5 4 . . . 1 . 3 Storage 8 | 1 . . 1 . 2 . . . 1 2 . . . 1 . . . . . . . . . . . . Processor 9 | . . . . . 1 . . . . . 1 . . . 2 . . . . 2 . . . . 2 1 Hackware 17 | . . . . . . . . . . . . . . . . 5 2 2 1 . . . . 3 . 4 Protection 20 | . . . . . 1 . . . . 2 2 . 1 1 1 . 2 . 5 3 . . . 1 . 1 Artifact . | . . . . . . . . . . . . . . . . . . . . . . . . . . . Weapon 133 | 2 2 . . 2 3 14 2 1 . 2 3 15 10 2 14 5 6 4 18 17 . 3 1 3 . 4 Energy Gun 12 | . . . . . 1 5 . . . 1 1 1 2 . . . . . . 1 . . . . . . Energy Cannon 35 | . . . . . 1 1 1 . . 1 1 5 2 . 2 . 1 . 6 4 . 3 . 3 . 4 Ballistic Gun 40 | 2 . . . . . 3 . . . . . 5 4 1 9 2 2 2 3 6 . . 1 . . . Ballistic Cannon 5 | . 2 . . 1 . 1 . . . . . . . . . . . . . 1 . . . . . . Launcher 15 | . . . . 1 . 1 1 1 . . . 1 1 . 1 . . . 4 4 . . . . . . Special Weapon 8 | . . . . . . . . . . . . 2 . . . 3 . 1 1 1 . . . . . . Impact Weapon 4 | . . . . . . 3 . . . . 1 . . . . . . . . . . . . . . . Slashing Weapon 14 | . . . . . 1 . . . . . . 1 1 1 2 . 3 1 4 . . . . . . . Piercing Weapon . | . . . . . . . . . . . . . . . . . . . . . . . . . . . Special Melee Weapon . | . . . . . . . . . . . . . . . . . . . . . . . . . . . Unidentified Prototypes 29 | . . . . . . 6 . . . 1 . . 4 . 7 . . . 3 3 . 1 2 . 1 1 Parts Lost 33 | . . . . . 1 2 . . . . . 1 1 . . 2 1 . 7 8 . 2 . 1 4 3 Power 8 | . . . . . 1 . . . . . . . . . . 1 1 . 1 2 . . . . 1 1 Propulsion 12 | . . . . . . 1 . . . . . 1 1 . . . . . 2 4 . 1 . . 2 . Utility 8 | . . . . . . . . . . . . . . . . 1 . . 1 2 . . . 1 1 2 Weapon 5 | . . . . . . 1 . . . . . . . . . . . . 3 . . 1 . . . . Highest Loss Streak 4 | . . . . . 1 1 . . . . . 1 1 . . 1 1 . 3 4 . 2 . 1 4 1 Average Slot Usage (%) 85 | . 98 100 100 100 97 99 98 100 79 87 86 85 83 83 71 96 91 99 90 84 5 20 22 46 51 66 Engine 2 | . 14 14 14 14 9 9 9 9 6 3 . . . . . . . . . . . . . . . . Reactor 3 | . . . . . . . . . . 2 6 6 6 6 6 6 4 5 5 4 . . 1 8 6 8 Treads 7 | . 14 14 14 14 10 9 18 23 . 5 6 6 11 13 12 . . . . . . 7 . . . . Leg 6 | . . . . . . . . . . . . . . . . 26 26 29 25 14 . . . . . . Wheel 6 | . 14 14 14 14 14 17 7 3 20 13 13 12 1 . . . . . . 3 . . . . . . Device 4 | . 14 14 14 14 3 . . . . . . 2 11 14 4 6 2 2 1 4 . . . 3 4 7 Storage 18 | . 14 14 14 14 15 18 18 18 19 25 26 26 26 25 20 20 17 17 15 13 . . . . . . Processor 2 | . . . . . 7 9 9 9 6 6 6 3 . . . . . . . 3 5 4 4 . 2 6 Hackware 4 | . . . . . . . . . . . . . . . . 16 12 14 18 12 . . . 10 13 24 Protection 5 | . . . . . 9 9 9 9 6 11 6 6 5 2 6 . 4 5 6 6 . . . 2 3 1 Energy Gun 4 | . . . . . 9 16 18 18 13 16 13 4 . . . . . . . . . . . . . . Energy Cannon 1 | . . . . . . 5 6 . . . . 8 2 . . . 1 . 2 . . 2 . 3 4 4 Ballistic Gun 4 | . . . . . . 2 . . . . . 2 10 6 16 14 7 8 2 8 . . . . . . Ballistic Cannon 3 | . 26 28 28 28 15 . . . . . . . . . . . . . . . . . . . . . Slashing Weapon 1 | . . . . . 1 . . . . . . . 3 6 1 . 2 3 4 . . . . . . . Naked Turns . | . . . . . . . . . . . . . . . . . . . . . . . . . . . Heaviest Build 177 | 10 17 17 45 47 84 94 90 90 106 141 143 153 154 177 173 120 136 131 144 137 . 11 38 59 56 64 Greatest Support 166 | 20 10 10 10 10 42 26 60 60 42 42 32 70 150 150 150 120 150 150 166 150 3 70 64 60 60 66 Greatest Overweight (x) 46 | 1 1 1 4 4 8 8 8 5 2 46 4 9 5 44 2 1 1 . 1 7 . 3 . 18 . 1 Average Overweight (x) 1 | . . 1 1 4 3 3 7 1 2 3 3 4 . 3 1 . . . . 1 . 1 . . . . Largest Inventory Capacity 32 | 6 6 6 12 12 20 20 20 20 26 32 32 32 32 32 26 26 26 26 26 26 4 4 4 4 4 4 Average Capacity 23 | 5 6 6 6 12 17 20 20 20 25 31 32 32 32 31 26 26 26 26 26 23 4 4 4 4 4 4 Most Carried 32 | 5 6 6 8 10 19 20 20 20 21 32 32 32 32 32 26 26 26 26 26 26 4 4 4 4 2 4 Average Carried 22 | 2 5 5 6 9 14 19 19 19 20 30 31 31 29 30 25 25 25 25 25 23 4 4 4 2 2 3 Final Capacity 32 | 6 6 6 12 12 20 20 20 20 26 32 32 32 32 26 26 26 26 26 26 4 4 4 4 4 4 4 Final Carried 32 | 5 6 6 8 10 19 20 19 20 21 32 32 30 29 26 26 26 26 25 22 4 4 4 4 2 2 4 Class Distribution -------------------- 21% | Hauler-Mutant 17% | Scavenger-Mutant 16% | Mutant 13% | Commander-Mutant 7% | Hauler-Skirmisher 6% | Scavenger-Skirmisher 3% | Hacker-Mutant Dominant Class ---------------- Mutant | -10/Materials Mutant | -10/Mines Mutant | -10/Exiles Mutant | -9/Mines Hauler-Skirmisher | -8/Materials Hauler-Skirmisher | -8/Storage Hauler-Skirmisher | -8/Garrison Hauler-Mutant | -8/Recycling Hauler-Mutant | -6/Factory Hauler-Tank | -6/Waste Hauler-Mutant | -6/Factory Hauler-Mutant | -6/Extension Commander-Mutant | -6/Cetus Commander-Mutant | -6/Archives Scavenger-Skirmisher | -6/Hub_04(d) Bothacker-Mutant | -6/Garrison Scavenger-Mutant | -5/Factory Scavenger-Mutant | -5/Garrison Scavenger-Mutant | -4/Factory Scavenger-Mutant | -4/Armory Mutant | -4/Lab Mutant | -3/Research Mutant | -2/Research Sprinter | -2/Garrison Sprinter | -2/Research Generator-Scout | -1/Access Resources | -11 -10 -10 -10 -9 -8 -8 -8 -8 -6 -6 -6 -6 -6 -6 -6 -6 -5 -5 -4 -4 -4 -3 -2 -2 -2 -1 ----------- Run | Scr Mat Min Exi Min Mat Sto Gar Rec Fac Was Fac Ext Cet Arc Hub Gar Fac Gar Fac Arm Lab Res Res Gar Res Acc Matter Collected 8025 | 268 . 124 20 161 341 100 117 325 . 100 319 518 201 370 1491 490 401 214 1090 697 . 158 . 408 20 92 Remotely . | . . . . . . . . . . . . . . . . . . . . . . . . . . . Salvage Created 10564 | 93 . 44 . 209 553 291 88 510 . . 444 505 278 353 2603 563 507 295 1927 539 . . . 421 95 246 Parts 497 | 2 . 8 . 12 34 11 20 34 . . 20 21 20 36 104 21 17 16 73 26 . . . 13 1 8 Haulers Intercepted 8 | . . . . . 2 2 . . . . 1 . . . 1 . . . 1 . . . . . 1 . Recyclers Shooed 3 | . . . . . . . . 1 . . 1 . . . . . . . 1 . . . . . . . Parts Field Recycled . | . . . . . . . . . . . . . . . . . . . . . . . . . . . Retrieved Matter . | . . . . . . . . . . . . . . . . . . . . . . . . . . . Parts Self-Destructed . | . . . . . . . . . . . . . . . . . . . . . . . . . . . Prevented . | . . . . . . . . . . . . . . . . . . . . . . . . . . . Kills | -11 -10 -10 -10 -9 -8 -8 -8 -8 -6 -6 -6 -6 -6 -6 -6 -6 -5 -5 -4 -4 -4 -3 -2 -2 -2 -1 ------- Run | Scr Mat Min Exi Min Mat Sto Gar Rec Fac Was Fac Ext Cet Arc Hub Gar Fac Gar Fac Arm Lab Res Res Gar Res Acc Combat Hostiles Destroyed 161 | . . 4 . 8 10 1 9 12 . . 4 7 3 . 31 11 6 4 28 15 . . . 7 . 1 Melee 9 | . . . . . . . . . . . 2 . . . . . . 1 4 2 . . . . . . Guns 63 | . . . . . . . 1 4 . . 1 3 3 . 20 11 5 3 6 6 . . . . . . Cannons 35 | . . 4 . 5 9 1 1 . . . . 1 . . 4 . 1 . 2 1 . . . 5 . 1 AOE 32 | . . . . 3 1 . 7 8 . . . 2 . . 3 . . . 4 4 . . . . . . Classes Destroyed 21 | 1 . 3 . 4 3 1 . 1 . . 1 2 . . 3 . . . 1 1 . . . . . . Worker 13 | . . 3 . . 1 . . . . . . . . . 5 . 1 . 3 . . . . . . . Builder 8 | . . 1 . . 1 . . 1 . . 1 . . . 1 . . . 3 . . . . . . . Tunneler 4 | . . . . 1 . . . . . . 1 . . . . . . . 1 . . . . . . 1 Hauler 8 | . . . . . 2 2 . . . . 1 . . . 1 . . . 1 . . . . . 1 . Recycler 14 | 1 . . . 1 1 1 . 8 . . . 1 . . . . . . . . . . . . . 1 Mechanic 1 | . . . . . . . . . . . . . . . . . . . 1 . . . . . . . Operator 11 | . . . . . 1 . . . . . 1 . . 9 . . . . . . . . . . . . Drone 12 | . . . . . . . . 12 . . . . . . . . . . . . . . . . . . Watcher 4 | . . . . . . 1 . . . . 1 1 . . . . 1 . . . . . . . . . Swarmer 22 | . . . . 3 3 . 8 . . . . . . . 2 2 . . . . . . . 4 . . Saboteur 8 | . . . . . . . . . . . . . . . 2 . . . 2 4 . . . . . . Grunt 46 | . . . . 4 3 . . . . . . 3 . . 9 8 4 1 12 . . . . 2 . . Brawler 8 | . . . . . . . . . . . . 1 . . 2 . . 1 4 . . . . . . . Duelist 8 | . . . . 1 . . . . . . . . . . 2 . . . 2 3 . . . . . . Protector 3 | . . . . . . . . . . . . . . . 2 . . . . 1 . . . . . . Sentry 24 | . . . . . 4 1 1 . . . 2 1 . . 3 1 2 2 3 2 . . . 1 . 1 Specialist 2 | . . . . . . . . . . . . . . . . . . . . 2 . . . . . . Hunter 4 | . . . . . . . . . . . . . . . 2 . . . 2 . . . . . . . Programmer 9 | . . . . . . . . . . . 2 1 . . 1 . . . 3 2 . . . . . . Behemoth 2 | . . . . . . . . . . . . 1 . . . . . . . 1 . . . . . . Cetus Guard 3 | . . . . . . . . . . . . . 3 . . . . . . . . . . . . . Enhanced Grunt 3 | . . . . . . . . . . . . . . . 3 . . . . . . . . . . . Lightning 6 | . . . . . . . . . . . . . . . 6 . . . . . . . . . . . Assembled 4 | . . 4 . . . . . . . . . . . . . . . . . . . . . . . . Thug 2 | . . . . . . . . . . . . . 1 . 1 . . . . . . . . . . . Guerrilla 2 | . . . . . . . . . . . . . . . 2 . . . . . . . . . . . Best Kill Streak 13 | 1 . 3 . 3 6 1 6 5 . . 4 3 3 4 9 5 4 2 13 4 . . . 4 1 1 Combat Bots Only 9 | . . 1 . 3 6 1 6 3 . . 1 3 3 . 9 5 4 2 9 4 . . . 4 . 1 Max Kills in Single Turn 4 | 1 . 2 . 3 2 1 4 2 . . 3 2 1 1 4 1 1 1 3 2 . . . 1 1 1 Gunslinging . | . . . . . . . . . . . . . . . . . . . . . . . . . . . Exploded 4 | . . . . 3 1 . 4 2 . . . 2 . . 1 . . . 3 2 . . . . . . Melee 1 | . . . . . . . . . . . 1 . . . . . . 1 1 1 . . . . . . Uniques/NPCs Destroyed . | . . . . . . . . . . . . . . . . . . . . . . . . . . . Combat | -11 -10 -10 -10 -9 -8 -8 -8 -8 -6 -6 -6 -6 -6 -6 -6 -6 -5 -5 -4 -4 -4 -3 -2 -2 -2 -1 -------- Run | Scr Mat Min Exi Min Mat Sto Gar Rec Fac Was Fac Ext Cet Arc Hub Gar Fac Gar Fac Arm Lab Res Res Gar Res Acc Damage Taken 12485 | . . 43 . 146 491 202 47 83 . . 650 318 128 . 1845 730 460 445 2766 2114 . 687 189 533 340 268 Core 1349 | . . . . 24 15 29 . . . . 56 14 . . 44 45 56 68 218 461 . 175 69 . 50 25 Absorbed by Shields 378 | . . . . . . . . . . . . 56 76 . . . . 122 . . . . . 124 . . Reduced by Siege Mode 43 | . . . . . . . . . . . 3 . . . 40 . . . . . . . . . . . Core Remaining (%) 85 | 100 . . . 90 . . . 92 . . . . . . . 81 . 87 . . 40 86 . . 91 98 Volleys Fired 651 | 2 . 11 . 17 47 14 9 25 2 . 11 64 11 56 103 52 20 15 85 52 . 2 . 28 8 17 Largest 3 | 2 . 2 . 2 3 3 3 2 2 . 2 3 2 1 3 3 3 3 2 3 . 1 . 1 1 1 Hottest 240 | 40 . 78 . 78 118 136 156 100 100 . 110 180 240 33 103 105 120 103 120 120 . 94 . 120 120 120 Shots Fired 1076 | 4 . 21 . 33 100 32 15 37 4 . 23 84 12 54 240 87 44 39 89 103 . 2 . 28 8 17 Gun 686 | 4 . . . . 32 18 6 24 4 . 23 30 7 54 226 76 37 36 27 82 . . . . . . Cannon 284 | . . 21 . 32 68 14 3 . . . . 17 5 . 10 . 5 . 43 11 . 2 . 28 8 17 Launcher 41 | . . . . 1 . . 6 13 . . . 3 . . 4 . . . 10 4 . . . . . . Special 65 | . . . . . . . . . . . . 34 . . . 11 2 3 9 6 . . . . . . Kinetic 688 | 4 . 21 . 32 65 7 . . . . . 15 6 54 226 76 37 36 27 82 . . . . . . Thermal 55 | . . . . . . 3 . . . . . . 1 . . . 5 . 1 4 . . . 19 8 14 Explosive 36 | . . . . 1 . . 6 13 . . . 3 . . 4 . . . 5 4 . . . . . . Electromagnetic 232 | . . . . . 35 22 9 24 4 . 23 32 5 . 10 . . . 47 7 . 2 . 9 . 3 Robot Hit Streak 25 | 2 . 4 . 12 13 16 7 6 1 . 15 25 4 5 22 7 10 4 9 7 . . . 3 7 12 Robot Miss Streak 9 | 1 . 3 . 3 3 3 1 5 9 . 2 3 1 7 3 3 1 5 3 5 . 2 . 1 . . Penetration Max 2 | . . . . . . . . . . . . 1 1 1 1 1 1 1 2 . . . . 1 . . Secondary Targets 7 | . . . . . . . . . . . . . . . 3 . 1 . 1 2 . . . . . . Max Gunslinging Chain 1 | . . . . . . . . . . . . . . . 1 . 1 . 1 1 . . . . . . Shots Hit Robots 704 | 2 . 8 . 22 69 19 5 17 1 . 35 68 7 26 180 38 28 24 86 54 . . . 5 5 5 Core Hits 415 | 2 . 8 . 12 25 7 10 26 1 . 16 25 8 16 129 18 14 8 55 24 . . . 8 . 3 Critical Hits 85 | . . . . 1 . . . . . . . 2 5 10 41 6 4 4 7 2 . . . 1 . 2 Critical Kills 34 | . . . . 1 . . . . . . . 1 4 4 14 2 2 3 . 1 . . . 1 . 1 Critical Parts Destroyed 47 | . . . . . . . . . . . . 1 . 6 26 4 2 1 6 1 . . . . . . Melee Attacks 140 | . . . . . 4 3 4 . . . 38 3 6 5 12 . 11 12 42 . . . . . . . Impact 47 | . . . . . . 3 4 . . . 38 2 . . . . . . . . . . . . . . Slashing 93 | . . . . . 4 . . . . . . 1 6 5 12 . 11 12 42 . . . . . . . Piercing . | . . . . . . . . . . . . . . . . . . . . . . . . . . . Sneak Attacks 15 | . . . . . 1 . . . . . 2 1 . 5 . . 2 1 3 . . . . . . . Combat Hostiles 1 | . . . . . . . . . . . . . . . . . . 1 . . . . . . . . Follow-up Attacks . | . . . . . . . . . . . . . . . . . . . . . . . . . . . Damage Inflicted 26424 | 18 . 199 . 609 1409 383 389 1733 22 . 1147 1446 511 1072 5524 860 1105 704 5516 2651 . . . 718 175 233 Guns 8943 | 16 . . . . 328 186 12 239 22 . 425 451 65 227 3101 860 665 453 753 1140 . . . . . . Cannons 6196 | . . 199 . 488 901 197 42 . . . . 303 88 . 724 . 172 . 1782 247 . . . 718 173 162 Explosions 7597 | . . . . 121 29 . 335 1473 . . 103 536 358 . 1699 . . . 1625 1247 . . . . . 71 Melee 3586 | . . . . . 151 . . . . . 619 156 . 845 . . 250 251 1314 . . . . . . . Ramming 102 | 2 . . . . . . . 21 . . . . . . . . 18 . 42 17 . . . . 2 . Kinetic 9065 | 16 . 199 . 488 843 57 . . . . . 198 65 227 3101 860 665 453 753 1140 . . . . . . Thermal 1550 | . . . . . 29 36 . 54 . . . 94 358 . 16 . 172 . 115 37 . . . 321 173 145 Explosive 5421 | . . . . 121 . . 335 1419 . . 103 442 . . 494 . . . 1260 1247 . . . . . . Electromagnetic 6700 | . . . . . 386 290 54 239 22 . 425 556 88 . 1913 . . . 2032 210 . . . 397 . 88 Impact 619 | . . . . . . . . . . . 619 . . . . . . . . . . . . . . . Slashing 2967 | . . . . . 151 . . . . . . 156 . 845 . . 250 251 1314 . . . . . . . Piercing . | . . . . . . . . . . . . . . . . . . . . . . . . . . . Highest Corruption 21 | . . . . . . . . . . . 7 7 7 7 4 4 . . 8 21 21 . . . . . Average Corruption 5 | . . . . . . . . . . . 3 7 7 5 3 4 . . 3 10 21 . . . . . Corruption Purged 7 | . . . . . . . . . . . . . . 7 . . . . . . . . . . . . Effects 215 | . . . . . . . . . . . 30 40 13 32 22 12 . . 17 48 1 . . . . . Message Errors 54 | . . . . . . . . . . . 8 10 2 7 9 3 . . 2 13 . . . . . . Matter Fused 35 | . . . . . . . . . . . 3 8 2 7 3 2 . . 4 6 . . . . . . Heat Flow Errors 25 | . . . . . . . . . . . 8 3 3 3 2 . . . 1 4 1 . . . . . Energy Discharges 22 | . . . . . . . . . . . 3 4 1 2 3 1 . . 2 6 . . . . . . Data Loss (minor) 13 | . . . . . . . . . . . 5 1 . 1 1 . . . 3 2 . . . . . . Data Loss (major) 4 | . . . . . . . . . . . 1 . 3 . . . . . . . . . . . . . Misfires 7 | . . . . . . . . . . . 1 2 . 1 . . . . . 3 . . . . . . Misdirections 4 | . . . . . . . . . . . . . . . . . . . . 4 . . . . . . Targeting Errors 44 | . . . . . . . . . . . 1 12 2 8 3 6 . . 5 7 . . . . . . Weapon Failures 7 | . . . . . . . . . . . . . . 3 1 . . . . 3 . . . . . . Overload Shots 1 | . . . . . . . . . . . . . 1 . . . . . . . . . . . . . Overflow Damage 1419 | . . 10 . 2 111 6 . 171 . . 162 126 39 283 26 . 114 58 272 17 . . . 3 10 9 Projectiles 194 | . . 10 . 2 8 6 . . . . . . . . 25 . . . 121 . . . . 3 10 9 Explosions 241 | . . . . . . . . 171 . . . . 39 . 1 . . . 13 17 . . . . . . Melee 984 | . . . . . 103 . . . . . 162 126 . 283 . . 114 58 138 . . . . . . . Knockbacks 21 | . . 2 . 11 3 . . . . . 4 . . . . . . . 1 . . . . . . . Impact 5 | . . . . . . . . . . . 4 . . . . . . . 1 . . . . . . . Kinetic 13 | . . 1 . 9 3 . . . . . . . . . . . . . . . . . . . . . Secondary 3 | . . 1 . 2 . . . . . . . . . . . . . . . . . . . . . . Self-Inflicted Damage 202 | . . . . . . . . 84 . . 15 . . . 20 . . . 12 8 . . . . 1 62 Shots 7 | . . . . . . . . 2 . . 1 . . . 2 . . . 1 . . . . . . 1 Rammed 3 | 1 . . . . . . . . . . . . . . . . . . . 1 . . . . 1 . Targets Rammed 9 | 1 . . . . . . . 1 . . . . . . . . 1 . 4 1 . . . . 1 . Kicked 5 | . . . . . . . . . . . . . . . . . 1 . 4 . . . . . . . Crushed 1 | . . . . . . . . 1 . . . . . . . . . . . . . . . . . . Highest Temperature 285 | . . . . . 162 171 192 106 42 . 246 280 248 171 264 31 210 237 264 285 182 2 251 201 254 230 Average Temperature 73 | . . . . . 59 66 85 41 23 . 83 83 111 78 87 16 77 85 71 54 96 1 136 84 96 73 Received Heat Transfer 2119 | . . . . 84 126 90 . . . . 78 106 12 . 351 234 168 63 408 108 . 165 9 9 54 54 Effects 7 | . . . . . . . . . . . . 3 . . . . . . 3 . . . . . 1 . Energy Bleed 1 | . . . . . . . . . . . . . . . . . . . . . . . . . 1 . Interference 6 | . . . . . . . . . . . . 3 . . . . . . 3 . . . . . . . Siege Activations 10 | . . . . . . . . . . . 1 1 1 . 7 . . . . . . . . . . . Total Turns 234 | . . . . . . . . . . . 9 18 14 . 193 . . . . . . . . . . . Longest Duration 69 | . . . . . . . . . . . 9 18 14 . 69 . . . . . . . . . . . Robots Corrupted 28 | . . . . . . 1 . . . . 2 1 . . 9 . . . 12 1 . . . 2 . . Combat Hostiles 21 | . . . . . . . . . . . 1 1 . . 4 . . . 12 1 . . . 2 . . Parts Fried 60 | . . . . . 1 1 . . . . 7 4 . . 18 . 2 . 17 3 . . . 6 . 1 Impact Corruptions 9 | . . . . . . . . . . . 8 . . . . . 1 . . . . . . . . . Robots Melted 1 | . . . . . . . . . . . . . . . . . . . . . . . . . 1 . Combat Hostiles . | . . . . . . . . . . . . . . . . . . . . . . . . . . . Parts Melted 5 | . . . . . . . . . . . 1 . . . . . . . . . . . . 2 1 1 Heat Transferred 2690 | . . . . . 50 80 . 100 . . . 100 250 . 50 . 400 . 250 80 . . . 720 400 210 Parts Sabotaged 19 | . . . . . . . . . . . . . . . . . . . . 19 . . . . . . Parts Stolen . | . . . . . . . . . . . . . . . . . . . . . . . . . . . Parts Stripped . | . . . . . . . . . . . . . . . . . . . . . . . . . . . Power Chain Reactions 7 | . . . . . 1 . . 1 . . . 1 1 . 1 . . . 1 1 . . . . . . Missiles Intercepted . | . . . . . . . . . . . . . . . . . . . . . . . . . . . Alert | -11 -10 -10 -10 -9 -8 -8 -8 -8 -6 -6 -6 -6 -6 -6 -6 -6 -5 -5 -4 -4 -4 -3 -2 -2 -2 -1 ------- Run | Scr Mat Min Exi Min Mat Sto Gar Rec Fac Was Fac Ext Cet Arc Hub Gar Fac Gar Fac Arm Lab Res Res Gar Res Acc Peak Influence 1762 | 5 63 44 . 215 371 104 284 239 950 332 146 246 574 481 1762 1653 867 331 898 1036 . . 119 309 247 983 Initial 1233 | . 3 24 . . . 18 26 127 935 332 . 44 109 223 9 1233 867 126 173 414 . . . 111 173 144 Average 309 | 3 20 23 . 68 175 58 219 118 945 220 29 129 369 273 1057 1460 183 243 468 388 . . 17 233 197 442 Maximum Alert Level 5 | . . . . 1 1 . 1 1 3 1 . 1 2 2 5 5 3 1 3 3 . . . 1 1 3 Low Security (%) 53 | 100 100 100 . 96 52 100 28 93 . 52 100 87 6 35 4 . 69 32 9 8 . 100 100 19 84 30 Level 1 25 | . . . . 3 47 . 71 6 . 47 . 12 56 33 . . 27 67 41 69 . . . 80 15 29 Level 2 6 | . . . . . . . . . . . . . 37 30 3 . . . 29 8 . . . . . 9 Level 3 8 | . . . . . . . . . 100 . . . . . 59 . 3 . 20 13 . . . . . 30 Level 4 3 | . . . . . . . . . . . . . . . 8 85 . . . . . . . . . . Level 5 2 | . . . . . . . . . . . . . . . 23 14 . . . . . . . . . . High Security . | . . . . . . . . . . . . . . . . . . . . . . . . . . . Max Security . | . . . . . . . . . . . . . . . . . . . . . . . . . . . Squads Dispatched 46 | . 1 . . . 2 1 . . . . 2 . . . 15 . 5 . 9 5 . 2 1 . 3 . Investigation 9 | . 1 . . . . . . . . . . . . . 2 . 1 . 1 2 . 1 1 . . . Extermination 9 | . . . . . . . . . . . 2 . . . 1 . 1 . 3 2 . . . . . . Reinforcement 11 | . . . . . . 1 . . . . . . . . 4 . . . 2 . . 1 . . 3 . Assault 8 | . . . . . 1 . . . . . . . . . 3 . . . 3 1 . . . . . . Garrison 9 | . . . . . 1 . . . . . . . . . 5 . 3 . . . . . . . . . Intercept . | . . . . . . . . . . . . . . . . . . . . . . . . . . . Construction Impeded 2 | . . . . . . . . . . . . . . . 2 . . . . . . . . . . . Haulers Reinforced 3 | . . . . . . . . . . . . . . . 1 . . . 1 . . . . . 1 . Stealth | -11 -10 -10 -10 -9 -8 -8 -8 -8 -6 -6 -6 -6 -6 -6 -6 -6 -5 -5 -4 -4 -4 -3 -2 -2 -2 -1 --------- Run | Scr Mat Min Exi Min Mat Sto Gar Rec Fac Was Fac Ext Cet Arc Hub Gar Fac Gar Fac Arm Lab Res Res Gar Res Acc Distress Signals 14 | . 1 . . . 2 . . . . . 1 2 1 . 2 . 1 . . 2 . . 1 . 1 . Communications Jammed 41 | . . . . . . . . . . . . . . . 41 . . . . . . . . . . . Distress Signals 40 | . . . . . . . . . . . . . . . 40 . . . . . . . . . . . Times Spotted 384 | . 2 4 . 8 18 7 6 15 1 . 11 18 11 26 58 21 19 7 45 51 . 7 17 7 14 11 Peak Tracking Total 13 | . 2 1 . 3 8 5 5 4 1 . 2 4 5 1 10 4 4 3 7 13 . 6 12 3 12 4 Tactical Retreats 25 | . . . . 1 2 1 . . . . . . . . 3 3 . . 7 5 . . 1 . 1 1 Traps | -11 -10 -10 -10 -9 -8 -8 -8 -8 -6 -6 -6 -6 -6 -6 -6 -6 -5 -5 -4 -4 -4 -3 -2 -2 -2 -1 ------- Run | Scr Mat Min Exi Min Mat Sto Gar Rec Fac Was Fac Ext Cet Arc Hub Gar Fac Gar Fac Arm Lab Res Res Gar Res Acc Traps Triggered 30 | . . . . . . . 3 . 1 . 2 1 . . 1 . 3 5 1 6 . 1 . 6 . . Indirectly . | . . . . . . . . . . . . . . . . . . . . . . . . . . . Trap Hack Attempts . | . . . . . . . . . . . . . . . . . . . . . . . . . . . Triggered . | . . . . . . . . . . . . . . . . . . . . . . . . . . . Disarmed . | . . . . . . . . . . . . . . . . . . . . . . . . . . . Reprogrammed 3 | . . . . . . . . . . . . . . . . . 3 . . . . . . . . . Reused . | . . . . . . . . . . . . . . . . . . . . . . . . . . . Traps Extracted . | . . . . . . . . . . . . . . . . . . . . . . . . . . . Installed . | . . . . . . . . . . . . . . . . . . . . . . . . . . . Triggered 1 | . . . . . . . . . . . . . . . 1 . . . . . . . . . . . Machines | -11 -10 -10 -10 -9 -8 -8 -8 -8 -6 -6 -6 -6 -6 -6 -6 -6 -5 -5 -4 -4 -4 -3 -2 -2 -2 -1 ---------- Run | Scr Mat Min Exi Min Mat Sto Gar Rec Fac Was Fac Ext Cet Arc Hub Gar Fac Gar Fac Arm Lab Res Res Gar Res Acc Machines Disabled 75 | . . . . . 4 2 1 4 . . 3 2 2 1 31 5 4 2 4 5 . . . 2 . 3 Max in Single Turn 14 | . . . . . 1 1 1 2 . . 2 1 1 . 14 1 1 1 1 2 . . . 1 . 1 Garrison Access 8 | . . . . . 1 . . . . . 2 . . . 1 . 1 . 1 . . . . . . 2 Garrison Relay 6 | . . . . . . . 1 . . . . . . . . 2 . 2 . . . . . 1 . . Network Hub 2 | . . . . . . . . . . . . . . . 2 . . . . . . . . . . . Energy Cycler 1 | . . . . . . . . . . . . . . . . . . . . . . . . . . 1 Machines Sabotaged . | . . . . . . . . . . . . . . . . . . . . . . . . . . . Garrisons Compromised . | . . . . . . . . . . . . . . . . . . . . . . . . . . . Overloaded Fab Kills . | . . . . . . . . . . . . . . . . . . . . . . . . . . . Fab Network Shutdowns 2 | . . . . . . . . . . . . . . . . . . . . 1 . . . . . 1 Hacking | -11 -10 -10 -10 -9 -8 -8 -8 -8 -6 -6 -6 -6 -6 -6 -6 -6 -5 -5 -4 -4 -4 -3 -2 -2 -2 -1 --------- Run | Scr Mat Min Exi Min Mat Sto Gar Rec Fac Was Fac Ext Cet Arc Hub Gar Fac Gar Fac Arm Lab Res Res Gar Res Acc Machines Accessed 104 | . 4 1 2 . 6 5 . 7 1 . 12 13 1 . 9 . 18 . 6 9 . 1 2 . 1 6 Terminals 66 | . 3 . . . 4 4 . 5 . . 6 13 1 . 7 . 11 . 2 4 . 1 1 . 1 3 Fabricators 10 | . . . . . . . . . 1 . 2 . . . . . 2 . 1 3 . . . . . 1 Repair Stations 6 | . . . . . . . . . . . 2 . . . . . 1 . 2 1 . . . . . . Recycling Units 5 | . 1 . . . 1 . . 2 . . . . . . . . . . . 1 . . . . . . Scanalyzers 2 | . . . . . 1 . . . . . . . . . . . 1 . . . . . . . . . Garrison Access 12 | . . . . . . 1 . . . . 2 . . . 2 . 3 . 1 . . . 1 . . 2 Total Hacks 374 | . 13 1 24 . 14 6 . 29 2 . 16 21 4 . 21 . 117 . 28 56 . 1 4 . 1 16 Successful 213 | . 10 1 24 . 9 4 . 19 1 . 5 12 . . 8 . 64 . 11 35 . . 3 . 1 6 Failed 159 | . 3 . . . 5 2 . 9 1 . 11 9 4 . 13 . 52 . 17 21 . 1 1 . . 10 Catastrophic 24 | . . . . . 2 1 . 1 . . 4 1 1 . 4 . 1 . 2 4 . . . . . 3 Database Lockouts 2 | . . . . . . . . 1 . . . . . . . . 1 . . . . . . . . . Manual 183 | . 7 . 1 . 6 2 . 21 . . 8 10 1 . 8 . 73 . 11 32 1 1 1 . . . Terminals 240 | . 10 . . . 10 5 . 26 . . 9 21 4 . 18 . 79 . 8 39 . 1 2 . 1 7 Fabricators 51 | . . . . . . . . . 2 . 2 . . . . . 15 . 13 12 . . . . . 7 Repair Stations 14 | . . . . . . . . . . . 3 . . . . . 3 . 6 2 . . . . . . Recycling Units 10 | . 3 . . . 1 . . 3 . . . . . . . . . . . 3 . . . . . . Scanalyzers 15 | . . . . . 3 . . . . . . . . . . . 12 . . . . . . . . . Garrison Access 19 | . . . . . . 1 . . . . 2 . . . 3 . 8 . 1 . . . 2 . . 2 Terminal Hacks 109 | . 4 1 24 . 4 2 . 12 . . 1 9 . . 3 . 27 . 2 16 . . 1 . 1 2 Record 24 | . . . 23 . . . . . . . . . . . . . . . . 1 . . . . . . Part Schematic 11 | . 1 . . . . . . 2 . . . . . . . . 6 . . 2 . . . . . . Robot Schematic 2 | . . . . . . . . . . . . . . . . . 1 . . 1 . . . . . . Robot Analysis 5 | . . . . . 1 . . 2 . . . 1 . . . . . . . 1 . . . . . . Prototype ID Bank 5 | . . . . . . . . 4 . . . . . . . . 1 . . . . . . . . . Open Door 11 | . . 1 . . . 2 . . . . . 7 . . . . . . . . . . . . . 1 Level Access Points 4 | . . . . . . . . . . . . . . . . . 1 . . 1 . . . . 1 1 Branch Access Points 3 | . . . . . . . . . . . 1 . . . . . 1 . 1 . . . . . . . Emergency Access Points 1 | . . . . . . . . . . . . . . . . . . . . 1 . . . . . . Machine Index 1 | . . . . . . . . . . . . . . . . . 1 . . . . . . . . . Terminal Index 2 | . . . . . . . . . . . . . . . . . . . 1 1 . . . . . . Unreport Threat 17 | . . . . . 3 . . 2 . . . . . . 3 . 6 . . 3 . . . . . . Locate Traps 5 | . . . . . . . . . . . . 1 . . . . 2 . . 2 . . . . . . Reprogram Traps 1 | . . . . . . . . . . . . . . . . . 1 . . . . . . . . . Recall Extermination 1 | . . . . . . . . . . . . . . . . . . . . 1 . . . . . . Hauler Manifests 3 | . 1 . . . . . . 1 . . . . . . . . 1 . . . . . . . . . Registered Components 1 | . . . . . . . . . . . . . . . . . 1 . . . . . . . . . Registered Prototypes 1 | . . . . . . . . . . . . . . . . . 1 . . . . . . . . . Zone Layout 10 | . 2 . . . . . . 1 . . . . . . . . 4 . . 2 . . 1 . . . EX-Prototype ID Bank 1 | . . . 1 . . . . . . . . . . . . . . . . . . . . . . . Fabricator Hacks 17 | . . . . . . . . . 1 . 1 . . . . . 6 . 2 5 . . . . . 2 Network Status 1 | . . . . . . . . . . . . . . . . . 1 . . . . . . . . . Load Schematic 6 | . . . . . . . . . . . . . . . . . 2 . 1 2 . . . . . 1 Build 10 | . . . . . . . . . 1 . 1 . . . . . 3 . 1 3 . . . . . 1 Repair Station Hacks 7 | . . . . . . . . . . . . . . . . . 2 . 3 2 . . . . . . Scan Component 4 | . . . . . . . . . . . . . . . . . 1 . 2 1 . . . . . . Repair 3 | . . . . . . . . . . . . . . . . . 1 . 1 1 . . . . . . Recycling Unit Hacks 4 | . 1 . . . 1 . . 1 . . . . . . . . . . . 1 . . . . . . Retrieve Components 4 | . 1 . . . 1 . . 1 . . . . . . . . . . . 1 . . . . . . Scanalyzer 11 | . . . . . 3 . . . . . . . . . . . 8 . . . . . . . . . Insert Component 5 | . . . . . 1 . . . . . . . . . . . 4 . . . . . . . . . Analyze 6 | . . . . . 2 . . . . . . . . . . . 4 . . . . . . . . . Garrison Access Hacks 13 | . . . . . . 1 . . . . 2 . . . 2 . 4 . 1 . . . 1 . . 2 Unlock Access 5 | . . . . . . 1 . . . . . . . . 1 . 2 . . . . . 1 . . . Seal Access 7 | . . . . . . . . . . . 2 . . . 1 . 1 . 1 . . . . . . 2 Coupler Status 1 | . . . . . . . . . . . . . . . . . 1 . . . . . . . . . Unauthorized Hacks 52 | . 5 . . . 1 1 . 6 . . 1 3 . . 3 . 17 . 3 11 . . 1 . . . Terminals 36 | . 4 . . . 1 1 . 4 . . . 3 . . 2 . 13 . 1 7 . . . . . . Track 5 | . 2 . . . . . . . . . . . . . . . 2 . . 1 . . . . . . Assimilate 2 | . . . . . . 1 . . . . . . . . . . 1 . . . . . . . . . Botnet 24 | . 2 . . . 1 . . 4 . . . 3 . . 2 . 7 . 1 4 . . . . . . Disrupt 3 | . . . . . . . . . . . . . . . . . 2 . . 1 . . . . . . Operators 2 | . . . . . . . . . . . . . . . . . 1 . . 1 . . . . . . Fabricators 11 | . . . . . . . . . . . 1 . . . . . 4 . 2 4 . . . . . . Prioritize 4 | . . . . . . . . . . . . . . . . . 2 . 1 1 . . . . . . Siphon 4 | . . . . . . . . . . . . . . . . . 2 . 1 1 . . . . . . Haulers 1 | . . . . . . . . . . . 1 . . . . . . . . . . . . . . . Overload 2 | . . . . . . . . . . . . . . . . . . . . 2 . . . . . . Repair Stations . | . . . . . . . . . . . . . . . . . . . . . . . . . . . Recycling Units 3 | . 1 . . . . . . 2 . . . . . . . . . . . . . . . . . . Tunnel 3 | . 1 . . . . . . 2 . . . . . . . . . . . . . . . . . . Scanalyzers . | . . . . . . . . . . . . . . . . . . . . . . . . . . . Garrison Access 2 | . . . . . . . . . . . . . . . 1 . . . . . . . 1 . . . Eject 2 | . . . . . . . . . . . . . . . 1 . . . . . . . 1 . . . Data Cores Recovered . | . . . . . . . . . . . . . . . . . . . . . . . . . . . Used . | . . . . . . . . . . . . . . . . . . . . . . . . . . . Hacking Detections 71 | . 3 . . . 6 3 . 4 1 . 8 7 2 . 8 . 13 . 5 6 . . 1 . . 4 Full Trace Events 5 | . . . . . 1 . . 1 . . . . . . 1 . 1 . 1 . . . . . . . Feedback Events . | . . . . . . . . . . . . . . . . . . . . . . . . . . . Feedback Blocked . | . . . . . . . . . . . . . . . . . . . . . . . . . . . Robot Schematics Acquired 2 | . . . . . . . . . . . . . . . . . 1 . . 1 . . . . . . Robots Built 1 | . . . . . . . . . . . 1 . . . . . . . . . . . . . . . Matter 438 | . . . . . . . . . 285 . 153 . . . . . . . . . . . . . . . Time 116 | . . . . . . . . . 76 . 40 . . . . . . . . . . . . . . . Total Robot Build Rating 1 | . . . . . . . . . . . 1 . . . . . . . . . . . . . . . Part Schematics Acquired 14 | . 1 . . . . . . 2 . . . . . . . . 9 . . 2 . . . . . . Parts Built 12 | . . . . . . . . . . . . . . . . . 4 . 2 5 . . . . . 1 Matter 1853 | . . . . . . . . . . . . . . . . . 779 . 192 597 . . . . . 285 Time 342 | . . . . . . . . . . . . . . . . . 158 . 32 102 . . . . . 50 Total Part Build Rating 89 | . . . . . . . . . . . . . . . . . 31 . 16 37 . . . . . 5 Parts Repaired 3 | . . . . . . . . . . . . . . . . . 1 . 1 1 . . . . . . Time 121 | . . . . . . . . . . . . . . . . . 54 . 36 31 . . . . . . Parts Recycled . | . . . . . . . . . . . . . . . . . . . . . . . . . . . Recycled Matter . | . . . . . . . . . . . . . . . . . . . . . . . . . . . Retrieved Matter . | . . . . . . . . . . . . . . . . . . . . . . . . . . . Retrieved Components 8 | . . . . . 2 . . 4 . . . . . . . . . . . 2 . . . . . . Parts Scanalyzed 4 | . . . . . 1 . . . . . . . . . . . 3 . . . . . . . . . Part Schematics Acquired 3 | . . . . . . . . . . . . . . . . . 3 . . . . . . . . . Parts Damaged . | . . . . . . . . . . . . . . . . . . . . . . . . . . . Bothacking | -11 -10 -10 -10 -9 -8 -8 -8 -8 -6 -6 -6 -6 -6 -6 -6 -6 -5 -5 -4 -4 -4 -3 -2 -2 -2 -1 ------------ Run | Scr Mat Min Exi Min Mat Sto Gar Rec Fac Was Fac Ext Cet Arc Hub Gar Fac Gar Fac Arm Lab Res Res Gar Res Acc Used RIF Installer 3 | . . . . . . . 1 . . . . . . . . 1 . 1 . . . . . . . . Hotswap 1 | . . . . . . . . . . . . . . . . . . 1 . . . . . . . . Command Fork 1 | . . . . . . . . . . . . . . . . 1 . . . . . . . . . . Robots Hacked 15 | . . . . . . . . . . . . . . . . 5 2 3 5 . . . . . . . Non-combat 5 | . . . . . . . . . . . . . . . . . . . 5 . . . . . . . Combat 10 | . . . . . . . . . . . . . . . . 5 2 3 . . . . . . . . Robot Hacks Applied 16 | . . . . . . . . . . . . . . . . 5 2 3 6 . . . . . . . find_chute 1 | . . . . . . . . . . . . . . . . . . . 1 . . . . . . . find_fabricator 2 | . . . . . . . . . . . . . . . . . . . 2 . . . . . . . drop_inventory 2 | . . . . . . . . . . . . . . . . . . . 2 . . . . . . . reprogram_traps 1 | . . . . . . . . . . . . . . . . . . . 1 . . . . . . . amplify_resonance 3 | . . . . . . . . . . . . . . . . 3 . . . . . . . . . . overwrite_iff 2 | . . . . . . . . . . . . . . . . . 2 . . . . . . . . . formatsys_high 5 | . . . . . . . . . . . . . . . . 2 . 3 . . . . . . . . Relay Couplers Released 46 | . . . . . 1 . 3 . . . 2 . . . 4 8 6 9 3 . . . 3 3 . 4 Ejected 6 | . . . . . . . . . . . . . . . 3 . . . . . . . 3 . . . Machine Destruction 36 | . . . . . 1 . 3 . . . 2 . . . 1 8 2 9 3 . . . . 3 . 4 Programmers 4 | . . . . . . . . . . . . . . . . . 4 . . . . . . . . . Attached 14 | . . . . . . . . . . . . . . . . 5 . 2 . . . . . 3 . 4 Robots Rewired 23 | . . . . . . . . . . . . 14 . . . . . . . 9 . . . . . . Allies Hacked . | . . . . . . . . . . . . . . . . . . . . . . . . . . . Hacks Repelled . | . . . . . . . . . . . . . . . . . . . . . . . . . . . Allies | -11 -10 -10 -10 -9 -8 -8 -8 -8 -6 -6 -6 -6 -6 -6 -6 -6 -5 -5 -4 -4 -4 -3 -2 -2 -2 -1 -------- Run | Scr Mat Min Exi Min Mat Sto Gar Rec Fac Was Fac Ext Cet Arc Hub Gar Fac Gar Fac Arm Lab Res Res Gar Res Acc Total Allies 57 | . . . . 4 . 1 . . . . 1 26 5 . . 2 6 3 . 9 . . . . . . Largest Group 20 | . . . . 4 3 1 . . . . 1 19 20 20 15 2 5 3 3 4 . . . . . . Highest-Rated Group 1052 | . . . . 71 40 26 . . . . 10 689 1052 1052 770 58 136 147 147 224 . . . . . . Highest-Rated Ally 156 | . . . . 31 16 26 . . . . 10 156 156 156 94 29 31 49 49 56 . . . . . . Total Orders 18 | . . . . . . . . . . . . 2 4 12 . . . . . . . . . . . . STAY 4 | . . . . . . . . . . . . 1 2 1 . . . . . . . . . . . . FOLLOW 14 | . . . . . . . . . . . . 1 2 11 . . . . . . . . . . . . Ally Attacks 416 | . . . . . 17 . . . . . . 87 38 18 114 . 80 . 21 41 . . . . . . Total Damage 10064 | . . . . . 221 . . . . . . 2068 937 395 3332 . 1293 . 861 957 . . . . . . Kills 80 | . . . . . 3 . . . . . . 12 12 4 30 . 8 . 6 5 . . . . . . Allies Corrupted 5 | . . . . . . . . . . . . 1 . . 4 . . . . . . . . . . . Allies Melted . | . . . . . . . . . . . . . . . . . . . . . . . . . . . Intel | -11 -10 -10 -10 -9 -8 -8 -8 -8 -6 -6 -6 -6 -6 -6 -6 -6 -5 -5 -4 -4 -4 -3 -2 -2 -2 -1 ------- Run | Scr Mat Min Exi Min Mat Sto Gar Rec Fac Was Fac Ext Cet Arc Hub Gar Fac Gar Fac Arm Lab Res Res Gar Res Acc Robot Analysis Total 5 | . . . . . 1 . . 2 . . . 1 . . . . . . . 1 . . . . . . Derelict Logs Recovered 3 | . . 2 . 1 . . . . . . . . . . . . . . . . . . . . . . Drone Launches . | . . . . . . . . . . . . . . . . . . . . . . . . . . . Drone Recoveries . | . . . . . . . . . . . . . . . . . . . . . . . . . . . Exploration | -11 -10 -10 -10 -9 -8 -8 -8 -8 -6 -6 -6 -6 -6 -6 -6 -6 -5 -5 -4 -4 -4 -3 -2 -2 -2 -1 ------------- Run | Scr Mat Min Exi Min Mat Sto Gar Rec Fac Was Fac Ext Cet Arc Hub Gar Fac Gar Fac Arm Lab Res Res Gar Res Acc Turns Passed 17082 | 103 161 629 305 827 588 458 518 584 70 839 1769 1185 541 1237 1477 460 1117 493 1319 1025 18 464 238 251 84 322 Spaces Moved 11278 | 61 168 568 325 615 313 261 274 296 55 402 1118 662 224 324 561 291 895 368 863 677 25 442 365 236 216 673 Core 588 | 11 . . . . . . . . . 8 . . . 25 . . . . . 144 25 342 31 2 . . Treads 1422 | 41 . . . . 5 33 31 234 . . . 6 210 299 561 1 . . . . . 1 . . . . Legs 2657 | . . . . . . . . . . . . . . . . 290 895 368 863 241 . . . . . . Wheels 4973 | 9 168 568 325 615 308 228 243 62 55 394 1118 656 14 . . . . . . 210 . . . . . . Hover 82 | . . . . . . . . . . . . . . . . . . . . 82 . . . . . . Flight 1556 | . . . . . . . . . . . . . . . . . . . . . . 99 334 234 216 673 Fastest Speed 16 | 50 80 90 90 120 120 110 160 113 113 113 130 140 140 160 180 100 100 100 100 50 50 27 27 27 27 16 Average Speed 117 | 131 89 90 92 120 127 134 162 166 113 173 139 140 161 325 180 100 100 100 107 103 50 100 33 34 27 20 Slowest Speed 2350 | 160 90 90 120 120 172 240 180 180 113 2350 140 200 200 2250 200 180 130 100 138 290 50 200 50 950 32 106 Overloaded Moves . | . . . . . . . . . . . . . . . . . . . . . . . . . . . Propulsion Burnouts . | . . . . . . . . . . . . . . . . . . . . . . . . . . . Robots Hopped 27 | . . . . . . . . . . . . . . . . . . . . . . 1 7 1 9 9 Cave-ins Triggered . | . . . . . . . . . . . . . . . . . . . . . . . . . . . Exploration Rate (%) 45 | 5 29 99 76 98 31 23 50 77 3 97 36 85 67 95 46 50 28 54 25 51 5 10 11 38 11 22 Regions Visited 26 Branch Regions 11 Pre-discovered Areas 5 | . 1 1 1 . . . . 2 . . . . . . . . . . . . . . . . . . Known Exits Taken 9 | . . . . . 1 1 . . . . 1 . . . 1 . 1 . 1 . 1 . 1 . 1 . Unknown Exits Taken 11 | 1 1 1 1 1 . . . 1 . . . 1 1 1 . . . . . 1 . 1 . . . . Scrap Searched 4 | . . 2 . 2 . . . . . . . . . . . . . . . . . . . . . . Spaces Dug 106 | . . . . . 1 2 2 . . . 9 . 4 . 9 3 4 4 34 25 . . . . 3 6 Terrain Destroyed 766 | . . 1 . 9 7 3 22 97 . . 30 26 19 . 359 8 9 4 62 81 . . . 2 3 24 Melee 40 | . . . . . 1 2 2 . . . 9 . 4 . 9 . 4 4 5 . . . . . . . Projectile 68 | . . 1 . 2 3 1 . . . . . . . . 24 8 5 . 7 6 . . . 2 3 6 AOE 658 | . . . . 7 3 . 20 97 . . 21 26 15 . 326 . . . 50 75 . . . . . 18 Terrain Rammed . | . . . . . . . . . . . . . . . . . . . . . . . . . . . Walls Destroyed . | . . . . . . . . . . . . . . . . . . . . . . . . . . . Machines Disabled . | . . . . . . . . . . . . . . . . . . . . . . . . . . . Actions | -11 -10 -10 -10 -9 -8 -8 -8 -8 -6 -6 -6 -6 -6 -6 -6 -6 -5 -5 -4 -4 -4 -3 -2 -2 -2 -1 --------- Run | Scr Mat Min Exi Min Mat Sto Gar Rec Fac Was Fac Ext Cet Arc Hub Gar Fac Gar Fac Arm Lab Res Res Gar Res Acc Total 14020 | 77 178 668 330 670 410 336 327 351 59 549 1262 844 383 447 820 381 1060 448 1113 926 29 457 473 374 223 825 Wait 1204 | 3 2 82 . 35 20 15 12 20 . 112 61 80 109 28 81 16 88 33 54 90 5 2 107 35 5 109 Move 11202 | 61 167 567 324 614 312 261 272 295 55 401 1117 661 223 323 560 289 895 367 862 676 24 439 350 233 200 654 Hop 25 | . . . . . . . . . . . . . . . . . . . . . . 1 7 1 7 9 Pick Up 137 | 5 2 3 3 2 15 6 1 1 1 13 11 3 5 6 10 6 10 4 8 17 . . . . . 5 Fast Attach 132 | 6 3 . . . . 9 . 3 1 5 4 . 5 6 9 3 8 2 14 18 . 9 6 4 2 15 Attach 75 | . . . . . 6 1 2 . . 3 1 2 3 2 10 6 5 1 14 10 . . . 4 . 5 Detach 63 | . 1 . . . 1 3 . 2 . 4 2 . 4 5 8 1 5 2 11 7 . . . 2 1 4 Swap 91 | . . 1 1 2 4 9 2 1 . 1 1 15 7 3 9 5 9 5 5 11 . . . . . . Drop 164 | . 3 4 2 . 1 15 1 3 . 10 16 3 10 13 18 3 8 5 14 21 . 4 3 . . 7 Fire 651 | 2 . 11 . 17 47 14 9 25 2 . 11 64 11 56 103 52 20 15 85 52 . 2 . 28 8 17 Melee 140 | . . . . . 4 3 4 . . . 38 3 6 5 12 . 11 12 42 . . . . . . . Ram 1 | . . . . . . . . . . . . . . . . . . . . 1 . . . . . . Kick 5 | . . . . . . . . . . . . . . . . . 1 . 4 . . . . . . . Crush 1 | . . . . . . . . 1 . . . . . . . . . . . . . . . . . . Escape Stasis 111 | . . . . . . . 24 . . . . 8 . . . . . 2 . 10 . . . 67 . . Rewire 18 | . . . . . . . . . . . . 5 . . . . . . . 13 . . . . . . Trap . | . . . . . . . . . . . . . . . . . . . . . . . . . . . Miscellaneous . | . . . . . . . . . . . . . . . . . . . . . . . . . . . Route ------- -11/Scrapyard -10/Materials (discovered 2 exits: [Mat] / *Min) -10/Mines (discovered 3 exits: [*Mat x2] / *Exi) -10/Exiles (discovered 2 exits: [*Min x2]) -9/Mines (discovered 2 exits: *Mat x2) -8/Materials (discovered 2 exits: *Sto x2) -8/Storage -8/Garrison (discovered 2 exits: *Rec x2) -8/Recycling -6/Factory -6/Waste -6/Factory (discovered 4 exits: *Low x2 / *Ext x2) -6/Extension (discovered 2 exits: *Fac / *Cet) -6/Cetus -6/Archives (discovered 3 exits: *Fac / *Hub x2) -6/Hub_04(d) (discovered 2 exits: *Fac / Gar) -6/Garrison -5/Factory (discovered 8 exits: Fac x4 / Upp x2 / Gar / Gar) -5/Garrison -4/Factory (discovered 4 exits: *Res / *Upp x2 / *Arm) -4/Armory (discovered 3 exits: Res x2 / *Lab) -4/Lab -3/Research -2/Research -2/Garrison -2/Research (discovered 3 exits: *Acc x3) -1/Access To Epsilon Eridani History --------- Turn | Location | Event 2 | -11/Scrapyard | Met Revision 17 4 | -11/Scrapyard | Discovered new exit (range 15) 104 | -11/Scrapyard | Entered Materials 189 | -10/Materials | Discovered new exit (range 6) 208 | -10/Materials | Discovered new exit (range 17) 265 | -10/Materials | Entered Mines 266 | -10/Mines | Assembled infested the area 309 | -10/Mines | Build established: Mutant 425 | -10/Mines | Discovered new exit (range 6) 470 | -10/Mines | Learned location of 1 exit from Materials 568 | -10/Mines | Met a Derelict who couldn't figure out how to use a Trap Extractor 649 | -10/Mines | Deemed a non-threat by the Exiles lab entrance 649 | -10/Mines | Discovered new exit (range 5) 660 | -10/Mines | Discovered new exit (range 11) 776 | -10/Mines | Learned location of Zion (-7) 894 | -10/Mines | Entered Exiles 908 | -10/Exiles | Discovered new exit (range 15) 917 | -10/Exiles | Met 8R-AWN 932 | -10/Exiles | Met EX-HEX 957 | -10/Exiles | Met EX-BIN 967 | -10/Exiles | Aligned with FarCom system 967 | -10/Exiles | Given EX-Vault access code 988 | -10/Exiles | Opened EX-Vault 994 | -10/Exiles | Found Gui. Plasma Cannon 1013 | -10/Exiles | Warned to stay clear of 0b10 Research branches 1039 | -10/Exiles | Met EX-DEC 1088 | -10/Exiles | Visited The Gauntlet 1187 | -10/Exiles | Discovered new exit (range 12) 1199 | -10/Exiles | Left Exiles lab with Gui. Plasma Cannon 1199 | -10/Exiles | Entered Mines 1282 | -9/Mines | Learned 2 Materials zone layouts 1703 | -9/Mines | Received a Mining Laser from a helpful Derelict 1760 | -9/Mines | Discovered new exit (range 6) 1768 | -9/Mines | Assisted by bots powering up and referring to "LRC-V3" 1785 | -9/Mines | Discovered new exit (range 4) 2026 | -9/Mines | Entered Materials 2026 | -8/Materials | Accompanied by 3 allies 2026 | -8/Materials | Evolved 4 slots: Propulsion x1, Utility x2, Weapon x1 2027 | -8/Materials | Identified exit to Storage 2558 | -8/Materials | Garrison activated, responded to threat 2614 | -8/Materials | Entered Storage 2945 | -8/Storage | Build established: Hauler-Skirmisher 3072 | -8/Storage | Identified exit to Garrison 3072 | -8/Storage | Entered Garrison 3116 | -8/Garrison | Triggered checkpoint 3135 | -8/Garrison | Garrison Relay disabled 3197 | -8/Garrison | Triggered checkpoint 3262 | -8/Garrison | Triggered checkpoint 3312 | -8/Garrison | Discovered new exit (range 11) 3453 | -8/Garrison | Discovered new exit (range 15) 3485 | -8/Garrison | Installed Relay Interface Framework 3590 | -8/Garrison | Entered Recycling 3769 | -8/Recycling | Spotter reported a threat 3805 | -8/Recycling | Spotter reported a threat 3805 | -8/Recycling | Spotter reported a threat 3824 | -8/Recycling | Spotter reported a threat 3892 | -8/Recycling | Spotter reported a threat 3911 | -8/Recycling | Build established: Hauler-Mutant 3926 | -8/Recycling | Spotter reported a threat 3926 | -8/Recycling | Spotter reported a threat 3971 | -8/Recycling | Spotter reported a threat 3979 | -8/Recycling | Spotter reported a threat 4005 | -8/Recycling | Spotter reported a threat 4006 | -8/Recycling | Spotter reported a threat 4007 | -8/Recycling | Spotter reported a threat 4032 | -8/Recycling | Spotter reported a threat 4059 | -8/Recycling | Spotter reported a threat 4069 | -8/Recycling | Spotter reported a threat 4112 | -8/Recycling | Spotter reported a threat 4139 | -8/Recycling | Spotter reported a threat 4157 | -8/Recycling | Discovered new exit (range 15) 4174 | -8/Recycling | Entered Factory 4174 | -6/Factory | Evolved 4 slots: Propulsion x1, Utility x3 4244 | -6/Factory | Sucked down chute 4244 | -6/Factory | Entered Waste 4244 | -6/Waste | The area was eerily silent 4304 | -6/Waste | Found Damper Plating 4549 | -6/Waste | Discovered new exit (range 12) 4574 | -6/Waste | Found Damper Plating 4951 | -6/Waste | Build established: Hauler-Tank 5083 | -6/Waste | Entered Factory 5456 | -6/Factory | Fabricated A-02 Transporter? 5542 | -6/Factory | Build established: Hauler-Mutant 6180 | -6/Factory | Discovered new exit (range 7) 6280 | -6/Factory | Identified exit to Lower Caves 6706 | -6/Factory | Identified exit to Extension 6852 | -6/Factory | Entered Extension 6928 | -6/Extension | Door terminal overloaded 6929 | -6/Extension | Rescued a captive Derelict 6930 | -6/Extension | Rescued a captive Derelict 6966 | -6/Extension | Rescued a captive Derelict 7088 | -6/Extension | Rescued A7 7114 | -6/Extension | Rescued a captive Derelict 7115 | -6/Extension | Rescued a captive Derelict 7160 | -6/Extension | Rescued a captive Derelict 7552 | -6/Extension | Spotted B-75 Beast 7555 | -6/Extension | Allies destroyed B-75 Beast 7593 | -6/Extension | Destroyed B-75 Beast 7869 | -6/Extension | Rescued a captive Derelict 7906 | -6/Extension | Rescued a captive Derelict 7909 | -6/Extension | Rescued a captive Derelict 7915 | -6/Extension | Rescued a captive Derelict 7916 | -6/Extension | Rescued a captive Derelict 7968 | -6/Extension | Discovered new exit (range 10) 7970 | -6/Extension | Discovered new exit (range 6) 8037 | -6/Extension | Entered Cetus 8037 | -6/Cetus | Accompanied by 18 allies (A7) 8042 | -6/Cetus | Acquired a Cetus Manufacturing Module code from A7 8056 | -6/Cetus | Spotted Cetus Guard 8056 | -6/Cetus | Spotted Cetus Guard 8064 | -6/Cetus | Destroyed Cetus Guard 8064 | -6/Cetus | Allies destroyed Cetus Guard 8066 | -6/Cetus | Spotted Cetus Guard 8068 | -6/Cetus | Spotted Cetus Guard 8071 | -6/Cetus | Destroyed Cetus Guard 8073 | -6/Cetus | Destroyed Cetus Guard 8182 | -6/Cetus | Build established: Commander-Mutant 8295 | -6/Cetus | Discovered new exit (range 16) 8354 | -6/Cetus | Started Cetus Manufacturing Module 8367 | -6/Cetus | Escorted A7 to Cetus Mainframe 8379 | -6/Cetus | Manufactured an Enhanced Grunt 8404 | -6/Cetus | Manufactured an Enhanced Grunt 8429 | -6/Cetus | Manufactured an Enhanced Grunt 8454 | -6/Cetus | Manufactured an Enhanced Grunt 8479 | -6/Cetus | Manufactured an Enhanced Grunt 8578 | -6/Cetus | Entered Archives 8578 | -6/Archives | Accompanied by 20 allies (A7) 8583 | -6/Archives | Received a hacking code to weaken MAIN.C 8620 | -6/Archives | Discovered new exit (range 16) 8837 | -6/Archives | Discovered new exit (range 15) 8895 | -6/Archives | Discovered new exit (range 16) 9815 | -6/Archives | Entered Hub_04(d) 9815 | -6/Hub_04(d) | Accompanied by 15 allies 9901 | -6/Hub_04(d) | Garrison activated, responded to threat 10089 | -6/Hub_04(d) | Found Prototype Processor 10089 | -6/Hub_04(d) | Identified Exp. Signal Interpreter 10236 | -6/Hub_04(d) | Network Hub disabled 10267 | -6/Hub_04(d) | Spotted Lightning 10269 | -6/Hub_04(d) | Spotted Lightning 10270 | -6/Hub_04(d) | Spotted Lightning 10290 | -6/Hub_04(d) | Destroyed Lightning 10306 | -6/Hub_04(d) | Destroyed Lightning 10326 | -6/Hub_04(d) | Destroyed Lightning 10353 | -6/Hub_04(d) | Found Prototype Device 10353 | -6/Hub_04(d) | Identified Exp. Phase Shifter 10362 | -6/Hub_04(d) | Found Prototype Device 10362 | -6/Hub_04(d) | Identified EM Dispersion Field 10380 | -6/Hub_04(d) | Found Prototype Processor 10380 | -6/Hub_04(d) | Identified Exp. Targeting Computer 10385 | -6/Hub_04(d) | Found Prototype Energy Cannon 10571 | -6/Hub_04(d) | Build established: Scavenger-Skirmisher 10632 | -6/Hub_04(d) | Discovered new exit (range 12) 10637 | -6/Hub_04(d) | Garrison activated, responded to threat 10648 | -6/Hub_04(d) | Spotted Lightning 10689 | -6/Hub_04(d) | Destroyed Lightning 10738 | -6/Hub_04(d) | Found Exp. Targeting Computer 10846 | -6/Hub_04(d) | Network Hub disabled 10846 | -6/Hub_04(d) | Spotted Lightning 10846 | -6/Hub_04(d) | Spotted Lightning 10858 | -6/Hub_04(d) | Destroyed Lightning 10865 | -6/Hub_04(d) | First assault squad dispatched 10897 | -6/Hub_04(d) | Destroyed Lightning 10924 | -6/Hub_04(d) | Identified EMDS 10984 | -6/Hub_04(d) | Destroyed 9 combat bots 11010 | -6/Hub_04(d) | Found EMDS 11026 | -6/Hub_04(d) | Found EM Dispersion Field 11281 | -6/Hub_04(d) | Identified exit to Garrison 11292 | -6/Hub_04(d) | Entered Garrison 11376 | -6/Garrison | Triggered checkpoint 11405 | -6/Garrison | Garrison Relay disabled 11509 | -6/Garrison | Triggered checkpoint 11523 | -6/Garrison | Triggered checkpoint 11538 | -6/Garrison | Triggered checkpoint 11632 | -6/Garrison | Discovered new exit (range 15) 11655 | -6/Garrison | Expanded RIF knowledge: Command Fork 11686 | -6/Garrison | Triggered checkpoint 11700 | -6/Garrison | Garrison Relay disabled 11752 | -6/Garrison | Entered Factory 11752 | -5/Factory | Accompanied by 2 allies 11752 | -5/Factory | Evolved 2 slots: Power x1, Propulsion x1 11787 | -5/Factory | Central database locked down 11818 | -5/Factory | Identified exit to Garrison 11866 | -5/Factory | Garrison activated, responded to threat 11935 | -5/Factory | Identified exit to Upper Caves 12037 | -5/Factory | Allied Derelicts emerged from ambush trap array 12076 | -5/Factory | Build established: Scavenger-Mutant 12098 | -5/Factory | Fabricated Enh. Biometal Leg (x1) 12138 | -5/Factory | Repaired Enh. Biometal Leg 12151 | -5/Factory | Fabricated Exp. Terrain Scan Processor (x1) 12275 | -5/Factory | Discovered new exit (range 14) 12276 | -5/Factory | Identified exit to Factory 12820 | -5/Factory | Fabricated Lgt. Quantum Reactor (x2) 12869 | -5/Factory | Identified exit to Garrison 12869 | -5/Factory | Entered Garrison 12874 | -5/Garrison | Expanded RIF knowledge: Hotswap 13067 | -5/Garrison | Garrison Relay disabled 13074 | -5/Garrison | Triggered checkpoint 13106 | -5/Garrison | Triggered checkpoint 13143 | -5/Garrison | Discovered exit to Factory (range 15) 13262 | -5/Garrison | Triggered checkpoint 13268 | -5/Garrison | Garrison Relay disabled 13362 | -5/Garrison | Entered Factory 13362 | -4/Factory | Accompanied by 3 allies 13362 | -4/Factory | Evolved 2 slots: Utility x2 13933 | -4/Factory | Repaired Centrium Medium Armor Plating? 13956 | -4/Factory | Fabricated Cmb. Antigrav System (x2) 14068 | -4/Factory | Discovered new exit (range 15) 14090 | -4/Factory | Identified exit to Upper Caves 14090 | -4/Factory | Identified exit to Armory 14112 | -4/Factory | First assault squad dispatched 14357 | -4/Factory | Build established: Hacker-Mutant 14358 | -4/Factory | Destroyed 9 combat bots 14521 | -4/Factory | Destroyed 8 combat bots 14522 | -4/Factory | Lost 3 parts (1n1u1w) 14681 | -4/Factory | Entered Armory 14789 | -4/Armory | Build established: Scavenger-Mutant 14962 | -4/Armory | System corruption reached 10% 15098 | -4/Armory | Spotted B-86 Titan 15129 | -4/Armory | Destroyed B-86 Titan 15387 | -4/Armory | Identified exit to Research 15432 | -4/Armory | Fabricated Exp. Terrain Scanner (x1) 15434 | -4/Armory | Repaired Micro-nuke Launcher? 15471 | -4/Armory | Fabricated Cmb. Antigrav System (x2) 15504 | -4/Armory | Fabricated Cmb. Antigrav System (x2) 15572 | -4/Armory | Local fabrication network quarantined 15626 | -4/Armory | Core integrity fell below 50% 15657 | -4/Armory | Lost 4 parts (2p1n1u) 15681 | -4/Armory | First assault squad dispatched 15705 | -4/Armory | Discovered new exit (range 2) 15706 | -4/Armory | Entered Lab 15706 | -4/Lab | Discovered exit to Research (range 9) 15712 | -4/Lab | Unable to decrypt terminal 15724 | -4/Lab | Entered Research 15724 | -3/Research | Evolved 2 slots: Utility x1, Weapon x1 15771 | -3/Research | Discovered new exit (range 9) 15930 | -3/Research | Build established: Mutant 16188 | -3/Research | Entered another Research area 16188 | -2/Research | Evolved 2 slots: Utility x2 16426 | -2/Research | Identified exit to Garrison 16426 | -2/Research | Entered Garrison 16475 | -2/Garrison | Garrison Relay disabled 16558 | -2/Garrison | Triggered checkpoint 16676 | -2/Garrison | Discovered new exit (range 8) 16677 | -2/Garrison | Entered Research 16682 | -2/Research | Identified exit to Access 16688 | -2/Research | Spotted B-90 Cyclops 16710 | -2/Research | Found Prototype Processor 16710 | -2/Research | Identified Spectral Analyzer 16712 | -2/Research | Found Spectral Analyzer 16736 | -2/Research | Spotted B-90 Cyclops 16761 | -2/Research | Entered Access 16761 | -1/Access | Evolved 2 slots: Power x1, Propulsion x1 16791 | -1/Access | Lost 4 parts (1p2n1u) 16913 | -1/Access | Fabricated Exp. Terrain Scan Processor (x1) 16954 | -1/Access | Local fabrication network quarantined 17005 | -1/Access | Identified exit to Surface 17066 | -1/Access | Energy Cycler disabled 17083 | *** | Escaped! Last Messages --------------- >>Seal Access door sealed. 16993_ Adv. Heat Sink destroyed. 16996_ Acquired Reaction Control System. 17005_ Connecting with Terminal... >>Access(Main) Found 1 level access point to Surface: (87,106) Map updated. 17053_ Connecting with Terminal... >>Open Sealed Barrier opened. 17054_ The Access Shell folds into the floor. 17066_ ALERT: Power surge detected, dispatching additional patrols. 17066_ Energy Cycler explodes. 17066_ Imp. Terrain Scanner destroyed. 17066_ Destroyed Imp. Terrain Scanner. 17066_ R-10 Processor destroyed. 17077_ Sealed Heavy Doors breached. 17079_ Terminal disabled. Map ----- +----------------------------------------------------+ | ??????????????????????##?#?### # | | ????????????????????????#??#?# # | | ?????????????????????????##??# + | | ??????????????????????????#??# " "" # | | ???????????????????????#??####""" "" # | | ???????????????????????#??#### """ Y" # ## | | ????????????????????????#?#### " "" # "## | | ????????????????????????????## "" # ## | | ???????????????????????????### # ## | | ???????????????????????????#?# # ## | | ??????????????????????????################## ## | | ???????????????????????#???####?############ ## | | ????????????????????#??????##?######## ## | | ????????????????????##?#?#?######?#### | | ???????????????????????#???########### ###+###### | | ???????????????#????#??##??#?######### ## | | ??????????????#??##????????#########?# ## | | ???????????????????????????#?######### ## "? | | ???????????????#???????#?#?########### ## """ | | ???????????????#????????############## ## """ | | ?????????????#??????########## ####### ##? " | | ???????????????? ???" ## ?? | | ??????????????BB????" ## | | ??????????????BB?"""" ## | | ??????????? ???????" u######?### | | ??????????? ????????" "@ ###### ##? | | ????????????? ???"??" "" ##?### ### | | ?????????????? ???"?" ###### | | ??????????????BB?"??" ######+#?? | | ??????????????BB??""" """ ""w ###??? ??? | | ??????????? ????????" """T""" ###? ? | | ?????????????????#?########### ####### #??? ?? | | ?????????????????#???###??##?###??#### ###?? ? | | ????????????Y??????#???############### ####? | | ???????????????????#?#??# # ##?#??? ? | | ?????????????????? ?#?### # #????????# | | ???????????????"?? ?###?# + #?###????# | | ????????????????????##?## """"" # #######?#? | | ????????????????????????# """"" # #####?##?? | | ???????????????????#??? # """"" # ####???### | | ???????????????????????## """"" # ##???????? | | ????????????????????????# """"" # #??####### | | ????????????????????????? """"" # # | | ??????????????????????? ? # + | | ????????????????????????#? # # """""" | | ?????????????????????????? # # """""" | | ??????????????????#??? ???############ # """""" | | ???????????????????? ?? ????##?###??## #? """""" | | ????????????????#???????########?##?## #??"""""" | | ????????????????????????#"""" ###?##?# #? | +----------------------------------------------------+ Best States ------------- Heat Dissipation 71 Energy Generation 45 Energy Capacity 590 Matter Stores 300 Matter Capacity 300 Sight Range 24 Terrain Scan Range 30 Terrain Scan Density 1010 Jamming Range 12 Armor Coverage 2400 Resistance: EM 90 Evasion (%) 78 Targeting Accuracy 12 Armor Integrity Analysis 66 Recoil Reduction 4 Offensive Hacking 24 Defensive Hacking 10 Relay Coupler Types 178 Relay Coupler Value 6 Item Schematics ----------------- Hcp. Storage Unit | -10/Materials | Hacked Lrg. Storage Unit | -8/Recycling | Hacked Arm. Wheel | -8/Recycling | Hacked Exp. Terrain Scan Processor | -5/Factory | Hacked Enh. Biometal Leg | -5/Factory | Scanalyzed Centrium Medium Armor Plating | -5/Factory | Scanalyzed Exp. Targeting Computer | -5/Factory | Scanalyzed Enh. Force Lance | -5/Factory | Hacked Lrn. Proton Cannon | -5/Factory | Hacked Cmb. Antigrav System | -5/Factory | Hacked Mic. Fission Core | -5/Factory | Hacked Hardcell Cannon | -5/Factory | Hacked Exp. Terrain Scanner | -4/Armory | Hacked Adv. Weapon Cycler | -4/Armory | Hacked Robot Schematics ------------------ G-50 Soldier | -5/Factory | Hacked P-70 Sage | -4/Armory | Hacked Fabricated ------------ A-02 Transporter | x1 | -6/Factory | Preloaded Enh. Biometal Leg | x1 | -5/Factory Exp. Terrain Scan Processor | x1 | -5/Factory Lgt. Quantum Reactor | x2 | -5/Factory | Preloaded Cmb. Antigrav System | x2 | -4/Factory Exp. Terrain Scanner | x1 | -4/Armory Cmb. Antigrav System | x2 | -4/Armory Cmb. Antigrav System | x2 | -4/Armory Exp. Terrain Scan Processor | x1 | -1/Access Alien Tech Used ----------------- None Achievements -------------- None Challenges ------------ None Game ------ Seed RecoilFortressMaul Manual? 0 Play Time 03:26:11 Cumulative 189.9 hours Start 2021.01.11 @ 13:21:51 End 2021.01.11 @ 17:01:30 Sessions 1 Manual Loads 0 Difficulty Rogue Special Mode None Game No. 61 Rogue 46 Adventurer 15 Explorer 0 Win Type 0 Total 6 Types 3/0/1/1/1/0/0/0/0 Lore% 82 Gallery% 82 Achievement% 69 Wizard Run 0 Options --------- ASCII 0 Keyboard 0 Movement Numpad Keybinds 0 Fullscreen 1 Font 18/SmallcapsGlow Map View 76x50 Tactical HUD 1 Map Filters NONE Filters NONE Steam 1 RUN: 6c399785-b152-4312-94aa-5a53cbe82f68